[Event "Titled Tuesday Blitz May 16 Early 2023"]
[White "Kielinkei"]
[Black "Chakravarthi Reddy, M"]
[BlackFideId "25009532"]
[WhiteElo "2432"]
[BlackElo "2201"]
[Result "0-1"]
[Round "03"]
[TimeControl "180+2"]
[Date "2023.05.16"]
[WhiteClock "0:00:00"]
[BlackClock "0:00:14"]

1. e4 {[%clk 0:03:00]}  e5 {[%clk 0:02:54]} 2. Nf3 {[%clk 0:03:00]}  Nc6 {[%clk 0:02:53]} 3. Nc3 {[%clk 0:03:00]}  Nf6 {[%clk 0:02:51]} 4. d4 {[%clk 0:02:57]}  exd4 {[%clk 0:02:51]} 5. Nd5 {[%clk 0:02:58]}  Bc5 {[%clk 0:02:45]} 6. Bg5 {[%clk 0:02:52]}  h6 {[%clk 0:02:46]} 7. Bxf6 {[%clk 0:02:42]}  gxf6 {[%clk 0:02:46]} 8. Bc4 {[%clk 0:02:23]}  Rg8 {[%clk 0:02:43]} 9. O-O {[%clk 0:02:20]}  d6 {[%clk 0:02:43]} 10. b4 {[%clk 0:02:06]}  Nxb4 {[%clk 0:02:33]} 11. Nxb4 {[%clk 0:01:56]}  Bxb4 {[%clk 0:02:32]} 12. Qxd4 {[%clk 0:01:41]}  Bc5 {[%clk 0:02:32]} 13. Qd2 {[%clk 0:01:28]}  Bh3 {[%clk 0:02:14]} 14. Ne1 {[%clk 0:01:24]}  Qd7 {[%clk 0:02:11]} 15. Kh1 {[%clk 0:01:18]}  Be6 {[%clk 0:01:37]} 16. Bxe6 {[%clk 0:01:14]}  fxe6 {[%clk 0:01:35]} 17. Qxh6 {[%clk 0:01:08]}  O-O-O {[%clk 0:01:34]} 18. Qd2 {[%clk 0:01:01]}  Rh8 {[%clk 0:01:15]} 19. Nd3 {[%clk 0:00:55]}  Bb6 {[%clk 0:01:10]} 20. h3 {[%clk 0:00:42]}  e5 {[%clk 0:01:10]} 21. Kh2 {[%clk 0:00:36]}  Rh4 {[%clk 0:01:01]} 22. Qe2 {[%clk 0:00:22]}  d5 {[%clk 0:00:40]} 23. exd5 {[%clk 0:00:18]}  Rdh8 {[%clk 0:00:30]} 24. Qf3 {[%clk 0:00:06]}  e4 {[%clk 0:00:30]} 25. Qg3 {[%clk 0:00:06]}  exd3 {[%clk 0:00:28]} 26. cxd3 {[%clk 0:00:07]}  Bd4 {[%clk 0:00:27]} 27. Rac1 {[%clk 0:00:05]}  Be5 {[%clk 0:00:27]} 28. f4 {[%clk 0:00:05]}  Bd6 {[%clk 0:00:21]} 29. Qe3 {[%clk 0:00:04]}  b6 {[%clk 0:00:17]} 30. Rf3 {[%clk 0:00:04]}  Qf5 {[%clk 0:00:15]} 31. Rcf1 {[%clk 0:00:03]}  Qxd5 {[%clk 0:00:14]} 32. Kh1 {[%clk 0:00:00]}  Bc5 {[%clk 0:00:14]} 0-1


[Site "https://www.chess.com"]

[Event "Titled Tuesday Blitz May 16 Early 2023"]
[White "merinasian"]
[Black "mestrefeitosa19"]
[WhiteElo "2428"]
[BlackElo "2227"]
[Result "1-0"]
[Round "03"]
[TimeControl "180+2"]
[Date "2023.05.16"]
[WhiteClock "0:02:29"]
[BlackClock "0:02:08"]

1. d4 {[%clk 0:03:00]}  d5 {[%clk 0:02:58]} 2. Nf3 {[%clk 0:03:00]}  e6 {[%clk 0:02:57]} 3. g3 {[%clk 0:03:00]}  Nf6 {[%clk 0:02:57]} 4. Bg2 {[%clk 0:03:00]}  Be7 {[%clk 0:02:58]} 5. O-O {[%clk 0:03:01]}  O-O {[%clk 0:02:59]} 6. c4 {[%clk 0:03:01]}  b6 {[%clk 0:02:59]} 7. cxd5 {[%clk 0:02:55]}  Nxd5 {[%clk 0:02:59]} 8. Nc3 {[%clk 0:02:56]}  Bb7 {[%clk 0:02:59]} 9. Qc2 {[%clk 0:02:53]}  Nxc3 {[%clk 0:02:57]} 10. bxc3 {[%clk 0:02:52]}  c5 {[%clk 0:02:57]} 11. e4 {[%clk 0:02:52]}  Nd7 {[%clk 0:02:51]} 12. Bf4 {[%clk 0:02:48]}  Nf6 {[%clk 0:02:51]} 13. Rfe1 {[%clk 0:02:41]}  Rc8 {[%clk 0:02:51]} 14. Rad1 {[%clk 0:02:36]}  Qe8 {[%clk 0:02:46]} 15. d5 {[%clk 0:02:32]}  Rd8 {[%clk 0:02:19]} 16. d6 {[%clk 0:02:30]}  Bxd6 {[%clk 0:02:08]} 17. Bxd6 {[%clk 0:02:29]} 1-0


[Site "https://www.chess.com"]

[Event "Titled Tuesday Blitz May 16 Early 2023"]
[White "Koepke, Christian"]
[Black "Deepak, Katiyar"]
[WhiteFideId "4655737"]
[BlackFideId "5026792"]
[WhiteElo "2204"]
[BlackElo "2069"]
[Result "1-0"]
[Round "03"]
[TimeControl "180+2"]
[Date "2023.05.16"]
[WhiteClock "0:00:18"]
[BlackClock "0:00:11"]

1. e4 {[%clk 0:03:00]}  c6 {[%clk 0:02:55]} 2. Nc3 {[%clk 0:03:00]}  d5 {[%clk 0:02:55]} 3. Qf3 {[%clk 0:03:00]}  d4 {[%clk 0:02:48]} 4. Bc4 {[%clk 0:02:59]}  e6 {[%clk 0:02:42]} 5. Nce2 {[%clk 0:02:59]}  c5 {[%clk 0:02:41]} 6. d3 {[%clk 0:02:53]}  Nc6 {[%clk 0:02:40]} 7. Qg3 {[%clk 0:02:49]}  Nf6 {[%clk 0:02:33]} 8. Bd2 {[%clk 0:02:39]}  e5 {[%clk 0:02:26]} 9. f4 {[%clk 0:02:27]}  Qc7 {[%clk 0:02:20]} 10. Nf3 {[%clk 0:01:42]}  Nh5 {[%clk 0:01:55]} 11. Qg5 {[%clk 0:01:40]}  Nxf4 {[%clk 0:01:52]} 12. Nxf4 {[%clk 0:01:35]}  exf4 {[%clk 0:01:51]} 13. Bxf4 {[%clk 0:01:31]}  Qe7 {[%clk 0:01:44]} 14. Qg3 {[%clk 0:01:25]}  Be6 {[%clk 0:01:41]} 15. Nd2 {[%clk 0:01:15]}  a6 {[%clk 0:01:36]} 16. O-O {[%clk 0:01:06]}  b5 {[%clk 0:01:34]} 17. Bxe6 {[%clk 0:01:03]}  Qxe6 {[%clk 0:01:35]} 18. a4 {[%clk 0:01:00]}  Rc8 {[%clk 0:01:24]} 19. axb5 {[%clk 0:01:00]}  axb5 {[%clk 0:01:24]} 20. Ra6 {[%clk 0:00:57]}  Qg6 {[%clk 0:01:09]} 21. Qh3 {[%clk 0:00:48]}  Qe6 {[%clk 0:01:03]} 22. Qxe6+ {[%clk 0:00:35]}  fxe6 {[%clk 0:01:03]} 23. Nf3 {[%clk 0:00:35]}  Be7 {[%clk 0:00:58]} 24. Rb6 {[%clk 0:00:25]}  O-O {[%clk 0:00:55]} 25. Bg3 {[%clk 0:00:25]}  Bd8 {[%clk 0:00:48]} 26. Rxb5 {[%clk 0:00:24]}  Nb4 {[%clk 0:00:45]} 27. Bd6 {[%clk 0:00:21]}  Rf7 {[%clk 0:00:41]} 28. Rxc5 {[%clk 0:00:19]}  Rxc5 {[%clk 0:00:38]} 29. Bxc5 {[%clk 0:00:20]}  Nxc2 {[%clk 0:00:38]} 30. Nxd4 {[%clk 0:00:20]}  Bf6 {[%clk 0:00:28]} 31. Nxc2 {[%clk 0:00:19]}  Rc7 {[%clk 0:00:27]} 32. b4 {[%clk 0:00:18]}  h6 {[%clk 0:00:24]} 33. g3 {[%clk 0:00:18]}  Kh7 {[%clk 0:00:24]} 34. Kg2 {[%clk 0:00:19]}  Rc8 {[%clk 0:00:23]} 35. Ne3 {[%clk 0:00:19]}  Bd8 {[%clk 0:00:23]} 36. Nc4 {[%clk 0:00:19]}  Bc7 {[%clk 0:00:23]} 37. Rf7 {[%clk 0:00:19]}  Kg6 {[%clk 0:00:18]} 38. Rd7 {[%clk 0:00:18]}  Bb8 {[%clk 0:00:13]} 39. Bd4 {[%clk 0:00:18]}  Rc7 {[%clk 0:00:11]} 40. Rxc7 {[%clk 0:00:17]}  Bxc7 {[%clk 0:00:11]} 41. b5 {[%clk 0:00:18]}  Kf7 {[%clk 0:00:11]} 42. b6 {[%clk 0:00:18]}  Bb8 {[%clk 0:00:11]} 43. Be5 {[%clk 0:00:18]}  Bxe5 {[%clk 0:00:10]} 44. Nxe5+ {[%clk 0:00:19]}  Kf6 {[%clk 0:00:11]} 45. b7 {[%clk 0:00:20]}  Kxe5 {[%clk 0:00:11]} 46. b8=Q+ {[%clk 0:00:20]}  Kd4 {[%clk 0:00:11]} 47. Qg8 {[%clk 0:00:20]}  Kxd3 {[%clk 0:00:12]} 48. Qxg7 {[%clk 0:00:20]}  Kxe4 {[%clk 0:00:12]} 49. Qxh6 {[%clk 0:00:20]}  e5 {[%clk 0:00:12]} 50. Kf2 {[%clk 0:00:19]}  Kd4 {[%clk 0:00:13]} 51. Qe3+ {[%clk 0:00:18]}  Kd5 {[%clk 0:00:13]} 52. Kf3 {[%clk 0:00:18]}  Kd6 {[%clk 0:00:11]} 53. Ke4 {[%clk 0:00:18]} 1-0


[Site "https://www.chess.com"]

[Event "Titled Tuesday Blitz May 16 Early 2023"]
[White "FunnyDuck66"]
[Black "Smietanska, Wiktoria"]
[BlackFideId "21869359"]
[WhiteElo "2410"]
[BlackElo "1995"]
[Result "0-1"]
[Round "03"]
[TimeControl "180+2"]
[Date "2023.05.16"]
[WhiteClock "0:00:00"]
[BlackClock "0:00:08"]

1. d4 {[%clk 0:02:59]}  Nf6 {[%clk 0:02:58]} 2. Nf3 {[%clk 0:02:59]}  g6 {[%clk 0:02:56]} 3. Bg5 {[%clk 0:02:58]}  Bg7 {[%clk 0:02:53]} 4. Nbd2 {[%clk 0:02:57]}  d5 {[%clk 0:02:51]} 5. e3 {[%clk 0:02:56]}  O-O {[%clk 0:02:50]} 6. Be2 {[%clk 0:02:54]}  c5 {[%clk 0:02:49]} 7. c3 {[%clk 0:02:54]}  Nc6 {[%clk 0:02:49]} 8. dxc5 {[%clk 0:02:52]}  h6 {[%clk 0:02:45]} 9. Bxf6 {[%clk 0:02:51]}  Bxf6 {[%clk 0:02:45]} 10. O-O {[%clk 0:02:47]}  e5 {[%clk 0:02:43]} 11. b4 {[%clk 0:02:38]}  Qe7 {[%clk 0:02:38]} 12. Qc2 {[%clk 0:02:01]}  a5 {[%clk 0:02:23]} 13. a3 {[%clk 0:01:59]}  Bf5 {[%clk 0:02:20]} 14. e4 {[%clk 0:01:58]}  dxe4 {[%clk 0:01:48]} 15. Nxe4 {[%clk 0:01:59]}  Bg7 {[%clk 0:01:41]} 16. Bd3 {[%clk 0:01:56]}  Rfd8 {[%clk 0:01:37]} 17. Rfe1 {[%clk 0:01:48]}  Rd7 {[%clk 0:01:04]} 18. Nd6 {[%clk 0:01:30]}  Bxd3 {[%clk 0:00:56]} 19. Qxd3 {[%clk 0:01:30]}  f5 {[%clk 0:00:53]} 20. Qc4+ {[%clk 0:01:27]}  Kh7 {[%clk 0:00:49]} 21. b5 {[%clk 0:01:19]}  Nd8 {[%clk 0:00:38]} 22. Rad1 {[%clk 0:01:19]}  b6 {[%clk 0:00:20]} 23. Qd5 {[%clk 0:01:04]}  Nb7 {[%clk 0:00:17]} 24. Qc6 {[%clk 0:00:53]}  Rc7 {[%clk 0:00:15]} 25. Qxb6 {[%clk 0:00:51]}  Nxc5 {[%clk 0:00:14]} 26. Rd5 {[%clk 0:00:43]}  Na4 {[%clk 0:00:12]} 27. Qe3 {[%clk 0:00:42]}  e4 {[%clk 0:00:12]} 28. Nd4 {[%clk 0:00:37]}  Nxc3 {[%clk 0:00:10]} 29. Nc6 {[%clk 0:00:31]}  Nxd5 {[%clk 0:00:09]} 30. Nxe7 {[%clk 0:00:30]}  Nxe3 {[%clk 0:00:09]} 31. Nc6 {[%clk 0:00:18]}  Nc2 {[%clk 0:00:09]} 32. Rc1 {[%clk 0:00:16]}  Nd4 {[%clk 0:00:09]} 33. a4 {[%clk 0:00:00]}  Ne2+ {[%clk 0:00:08]} 0-1


[Site "https://www.chess.com"]

[Event "Titled Tuesday Blitz May 16 Early 2023"]
[White "MANOJ_MISHRA123"]
[Black "KVAIDAN"]
[WhiteElo "2160"]
[BlackElo "2398"]
[Result "0-1"]
[Round "03"]
[TimeControl "180+2"]
[Date "2023.05.16"]
[WhiteClock "0:00:16"]
[BlackClock "0:00:49"]

1. d4 {[%clk 0:03:00]}  e6 {[%clk 0:02:59]} 2. Bf4 {[%clk 0:02:59]}  c5 {[%clk 0:02:58]} 3. e3 {[%clk 0:02:58]}  Qb6 {[%clk 0:02:56]} 4. Nc3 {[%clk 0:02:56]}  Qxb2 {[%clk 0:02:51]} 5. Nb5 {[%clk 0:02:54]}  Qb4+ {[%clk 0:02:47]} 6. c3 {[%clk 0:02:49]}  Qa5 {[%clk 0:02:45]} 7. Nc7+ {[%clk 0:02:41]}  Kd8 {[%clk 0:02:44]} 8. Nxa8 {[%clk 0:02:41]}  Qxc3+ {[%clk 0:02:44]} 9. Ke2 {[%clk 0:02:40]}  b6 {[%clk 0:02:43]} 10. Rc1 {[%clk 0:01:58]}  Ba6+ {[%clk 0:02:41]} 11. Kf3 {[%clk 0:01:58]}  Bb7+ {[%clk 0:02:41]} 12. Kg3 {[%clk 0:01:57]}  Qa3 {[%clk 0:02:39]} 13. Bc7+ {[%clk 0:01:51]}  Kc8 {[%clk 0:02:36]} 14. dxc5 {[%clk 0:01:44]}  Bxa8 {[%clk 0:02:23]} 15. cxb6 {[%clk 0:01:42]}  Nc6 {[%clk 0:02:23]} 16. Nf3 {[%clk 0:01:27]}  axb6 {[%clk 0:02:11]} 17. Qb3 {[%clk 0:01:09]}  Qxb3 {[%clk 0:02:08]} 18. axb3 {[%clk 0:01:05]}  Kxc7 {[%clk 0:02:05]} 19. Nd4 {[%clk 0:01:05]}  Nf6 {[%clk 0:02:02]} 20. Nb5+ {[%clk 0:01:02]}  Kd8 {[%clk 0:01:54]} 21. f3 {[%clk 0:01:01]}  Bc5 {[%clk 0:01:50]} 22. Kf2 {[%clk 0:00:56]}  Nd5 {[%clk 0:01:47]} 23. Re1 {[%clk 0:00:50]}  f5 {[%clk 0:01:43]} 24. Bc4 {[%clk 0:00:49]}  f4 {[%clk 0:01:42]} 25. Bxd5 {[%clk 0:00:47]}  Bxe3+ {[%clk 0:01:33]} 26. Ke2 {[%clk 0:00:43]}  exd5 {[%clk 0:01:17]} 27. Ra1 {[%clk 0:00:42]}  Bb7 {[%clk 0:01:16]} 28. Nd6 {[%clk 0:00:42]}  Nd4+ {[%clk 0:01:07]} 29. Kd3 {[%clk 0:00:41]}  Kc7 {[%clk 0:01:05]} 30. Nf7 {[%clk 0:00:33]}  Rf8 {[%clk 0:01:03]} 31. Ng5 {[%clk 0:00:28]}  Nxb3 {[%clk 0:01:01]} 32. Ra3 {[%clk 0:00:26]}  Nc5+ {[%clk 0:01:01]} 33. Ke2 {[%clk 0:00:25]}  d4 {[%clk 0:01:01]} 34. Rb1 {[%clk 0:00:24]}  Re8 {[%clk 0:00:55]} 35. Kd1 {[%clk 0:00:23]}  d3 {[%clk 0:00:51]} 36. g3 {[%clk 0:00:16]}  fxg3 {[%clk 0:00:49]} 0-1


[Site "https://www.chess.com"]

[Event "Titled Tuesday Blitz May 16 Early 2023"]
[White "Gatterer, Florian"]
[Black "Johnson, Ben"]
[WhiteFideId "811688"]
[BlackFideId "2010917"]
[WhiteElo "2221"]
[BlackElo "2138"]
[Result "1-0"]
[Round "03"]
[TimeControl "180+2"]
[Date "2023.05.16"]
[WhiteClock "0:00:02"]
[BlackClock "0:00:09"]

1. d4 {[%clk 0:02:57]}  Nf6 {[%clk 0:02:58]} 2. Bg5 {[%clk 0:02:54]}  d5 {[%clk 0:02:58]} 3. e3 {[%clk 0:02:53]}  c5 {[%clk 0:02:54]} 4. Bxf6 {[%clk 0:02:52]}  gxf6 {[%clk 0:02:55]} 5. dxc5 {[%clk 0:02:52]}  e6 {[%clk 0:02:49]} 6. Nf3 {[%clk 0:02:52]}  Bxc5 {[%clk 0:02:47]} 7. Be2 {[%clk 0:02:52]}  Nc6 {[%clk 0:02:46]} 8. O-O {[%clk 0:02:52]}  O-O {[%clk 0:02:44]} 9. a3 {[%clk 0:02:50]}  e5 {[%clk 0:02:37]} 10. b4 {[%clk 0:02:46]}  Be7 {[%clk 0:02:33]} 11. c4 {[%clk 0:02:45]}  Be6 {[%clk 0:02:28]} 12. Nbd2 {[%clk 0:02:31]}  d4 {[%clk 0:02:21]} 13. exd4 {[%clk 0:02:17]}  Nxd4 {[%clk 0:02:21]} 14. Nxd4 {[%clk 0:02:17]}  Qxd4 {[%clk 0:02:22]} 15. Nb3 {[%clk 0:02:14]}  Qxd1 {[%clk 0:02:14]} 16. Rfxd1 {[%clk 0:02:13]}  Rfd8 {[%clk 0:02:14]} 17. Na5 {[%clk 0:02:03]}  Rab8 {[%clk 0:02:03]} 18. Bf3 {[%clk 0:01:54]}  f5 {[%clk 0:01:37]} 19. Bxb7 {[%clk 0:01:23]}  Bxc4 {[%clk 0:01:12]} 20. Rxd8+ {[%clk 0:01:12]}  Bxd8 {[%clk 0:01:12]} 21. Nxc4 {[%clk 0:01:06]}  Rxb7 {[%clk 0:01:11]} 22. Rd1 {[%clk 0:01:00]}  Bf6 {[%clk 0:01:03]} 23. g3 {[%clk 0:00:50]}  e4 {[%clk 0:01:00]} 24. Rd5 {[%clk 0:00:44]}  f4 {[%clk 0:00:50]} 25. gxf4 {[%clk 0:00:41]}  Rc7 {[%clk 0:00:44]} 26. Rc5 {[%clk 0:00:40]}  Rd7 {[%clk 0:00:42]} 27. Ne5 {[%clk 0:00:34]}  Rd2 {[%clk 0:00:36]} 28. Rc7 {[%clk 0:00:29]}  Bh4 {[%clk 0:00:28]} 29. Ng4 {[%clk 0:00:29]}  h5 {[%clk 0:00:25]} 30. Nh6+ {[%clk 0:00:23]}  Kh7 {[%clk 0:00:21]} 31. Nxf7 {[%clk 0:00:18]}  Bxf2+ {[%clk 0:00:21]} 32. Kf1 {[%clk 0:00:16]}  Kg6 {[%clk 0:00:19]} 33. Ne5+ {[%clk 0:00:15]}  Kf5 {[%clk 0:00:19]} 34. Nc4 {[%clk 0:00:15]}  Ra2 {[%clk 0:00:17]} 35. Rf7+ {[%clk 0:00:14]}  Kg4 {[%clk 0:00:17]} 36. h3+ {[%clk 0:00:07]}  Kxh3 {[%clk 0:00:16]} 37. f5 {[%clk 0:00:06]}  h4 {[%clk 0:00:15]} 38. f6 {[%clk 0:00:06]}  Kh2 {[%clk 0:00:14]} 39. Rh7 {[%clk 0:00:05]}  Bg3 {[%clk 0:00:12]} 40. f7 {[%clk 0:00:05]}  Rf2+ {[%clk 0:00:12]} 41. Ke1 {[%clk 0:00:05]}  e3 {[%clk 0:00:12]} 42. Rh5 {[%clk 0:00:02]}  Rf3+ {[%clk 0:00:12]} 43. Ke2 {[%clk 0:00:02]}  Rxf7 {[%clk 0:00:11]} 44. Nxe3 {[%clk 0:00:01]}  Re7 {[%clk 0:00:12]} 45. Kf3 {[%clk 0:00:01]}  h3 {[%clk 0:00:11]} 46. Ng4+ {[%clk 0:00:02]}  Kg1 {[%clk 0:00:10]} 47. Ne3 {[%clk 0:00:02]}  Rg7 {[%clk 0:00:09]} 48. Nf5 {[%clk 0:00:02]}  h2 {[%clk 0:00:09]} 49. Nxg3 {[%clk 0:00:02]}  h1=Q+ {[%clk 0:00:09]} 50. Rxh1# {[%clk 0:00:02]} 1-0


[Site "https://www.chess.com"]

[Event "Titled Tuesday Blitz May 16 Early 2023"]
[White "ritanovikova"]
[Black "Goncalves, Davi Sulzbacher"]
[BlackFideId "2154510"]
[WhiteElo "2112"]
[BlackElo "2182"]
[Result "0-1"]
[Round "03"]
[TimeControl "180+2"]
[Date "2023.05.16"]
[WhiteClock "0:02:16"]
[BlackClock "0:01:54"]

1. e4 {[%clk 0:03:00]}  c6 {[%clk 0:02:59]} 2. d4 {[%clk 0:03:00]}  d5 {[%clk 0:02:57]} 3. Nd2 {[%clk 0:03:01]}  dxe4 {[%clk 0:02:56]} 4. Nxe4 {[%clk 0:03:02]}  Nd7 {[%clk 0:02:57]} 5. Nf3 {[%clk 0:03:00]}  Ngf6 {[%clk 0:02:57]} 6. Qe2 {[%clk 0:02:59]}  Nxe4 {[%clk 0:02:55]} 7. Qxe4 {[%clk 0:03:00]}  Nf6 {[%clk 0:02:56]} 8. Qh4 {[%clk 0:03:00]}  Bg4 {[%clk 0:02:52]} 9. Be2 {[%clk 0:02:55]}  e6 {[%clk 0:02:48]} 10. Bg5 {[%clk 0:02:54]}  Bxf3 {[%clk 0:02:38]} 11. Bxf3 {[%clk 0:02:52]}  Be7 {[%clk 0:02:36]} 12. O-O-O {[%clk 0:02:50]}  Nd5 {[%clk 0:01:55]} 13. Bxe7 {[%clk 0:02:43]}  Qxe7 {[%clk 0:01:56]} 14. Bxd5 {[%clk 0:02:16]}  Qxh4 {[%clk 0:01:54]} 0-1


[Site "https://www.chess.com"]

[Event "Titled Tuesday Blitz May 16 Early 2023"]
[White "Sailer, Mike"]
[Black "Goswami, Vedant"]
[WhiteFideId "2012901"]
[BlackFideId "5003725"]
[WhiteElo "2109"]
[BlackElo "2011"]
[Result "0-1"]
[Round "03"]
[TimeControl "180+2"]
[Date "2023.05.16"]
[WhiteClock "0:00:00"]
[BlackClock "0:00:06"]

1. d4 {[%clk 0:02:59]}  g6 {[%clk 0:02:59]} 2. Bg5 {[%clk 0:02:51]}  d6 {[%clk 0:02:58]} 3. Nc3 {[%clk 0:02:49]}  Bg7 {[%clk 0:02:56]} 4. Qd2 {[%clk 0:02:49]}  h6 {[%clk 0:02:50]} 5. Bf4 {[%clk 0:02:44]}  Nc6 {[%clk 0:02:48]} 6. Nf3 {[%clk 0:02:40]}  Bg4 {[%clk 0:02:42]} 7. d5 {[%clk 0:02:29]}  Bxf3 {[%clk 0:02:34]} 8. exf3 {[%clk 0:02:29]}  Ne5 {[%clk 0:02:32]} 9. Bxe5 {[%clk 0:02:21]}  Bxe5 {[%clk 0:02:31]} 10. Bb5+ {[%clk 0:02:21]}  Kf8 {[%clk 0:02:30]} 11. O-O {[%clk 0:02:21]}  Nf6 {[%clk 0:02:21]} 12. f4 {[%clk 0:02:12]}  Bxc3 {[%clk 0:02:17]} 13. Qxc3 {[%clk 0:02:12]}  a6 {[%clk 0:02:12]} 14. Bc4 {[%clk 0:02:08]}  Qd7 {[%clk 0:02:05]} 15. Rae1 {[%clk 0:02:00]}  h5 {[%clk 0:01:58]} 16. Qe3 {[%clk 0:01:39]}  h4 {[%clk 0:01:45]} 17. h3 {[%clk 0:01:31]}  Rh5 {[%clk 0:01:43]} 18. Qf3 {[%clk 0:01:24]}  Rf5 {[%clk 0:01:28]} 19. Bd3 {[%clk 0:00:51]}  Rxd5 {[%clk 0:01:22]} 20. f5 {[%clk 0:00:46]}  Kg7 {[%clk 0:01:10]} 21. fxg6 {[%clk 0:00:46]}  fxg6 {[%clk 0:01:10]} 22. Qf4 {[%clk 0:00:33]}  Rh8 {[%clk 0:01:02]} 23. Re2 {[%clk 0:00:29]}  g5 {[%clk 0:00:54]} 24. Qf3 {[%clk 0:00:28]}  Rf8 {[%clk 0:00:41]} 25. Rfe1 {[%clk 0:00:27]}  e5 {[%clk 0:00:39]} 26. Bf5 {[%clk 0:00:24]}  Qe7 {[%clk 0:00:34]} 27. Qe3 {[%clk 0:00:21]}  Kh6 {[%clk 0:00:32]} 28. g3 {[%clk 0:00:19]}  hxg3 {[%clk 0:00:32]} 29. fxg3 {[%clk 0:00:15]}  Nh5 {[%clk 0:00:30]} 30. Bg4 {[%clk 0:00:11]}  Rd4 {[%clk 0:00:25]} 31. c3 {[%clk 0:00:08]}  Ra4 {[%clk 0:00:20]} 32. b3 {[%clk 0:00:09]}  Ra5 {[%clk 0:00:18]} 33. a4 {[%clk 0:00:09]}  Qf6 {[%clk 0:00:16]} 34. Qe4 {[%clk 0:00:03]}  Rc5 {[%clk 0:00:12]} 35. Qd3 {[%clk 0:00:02]}  d5 {[%clk 0:00:11]} 36. Rg2 {[%clk 0:00:02]}  e4 {[%clk 0:00:11]} 37. Qe2 {[%clk 0:00:02]}  Rxc3 {[%clk 0:00:11]} 38. Kh2 {[%clk 0:00:02]}  Ng7 {[%clk 0:00:10]} 39. Reg1 {[%clk 0:00:01]}  Qe5 {[%clk 0:00:08]} 40. h4 {[%clk 0:00:01]}  gxh4 {[%clk 0:00:08]} 41. Qd2+ {[%clk 0:00:00]}  Kh7 {[%clk 0:00:06]} 0-1


[Site "https://www.chess.com"]

[Event "Titled Tuesday Blitz May 16 Early 2023"]
[White "Srebrnic, Ana"]
[Black "Koutsin, Sergey"]
[WhiteFideId "14603314"]
[BlackFideId "14101483"]
[WhiteElo "2181"]
[BlackElo "2381"]
[Result "0-1"]
[Round "03"]
[TimeControl "180+2"]
[Date "2023.05.16"]
[WhiteClock "0:00:52"]
[BlackClock "0:02:04"]

1. e4 {[%clk 0:03:00]}  e6 {[%clk 0:03:00]} 2. d4 {[%clk 0:03:00]}  d5 {[%clk 0:03:00]} 3. Nd2 {[%clk 0:03:00]}  c5 {[%clk 0:03:00]} 4. exd5 {[%clk 0:02:57]}  exd5 {[%clk 0:03:01]} 5. Bb5+ {[%clk 0:02:57]}  Nc6 {[%clk 0:03:01]} 6. Ngf3 {[%clk 0:02:55]}  Bd6 {[%clk 0:03:01]} 7. dxc5 {[%clk 0:02:54]}  Bxc5 {[%clk 0:03:01]} 8. O-O {[%clk 0:02:53]}  Ne7 {[%clk 0:03:01]} 9. Ne5 {[%clk 0:02:43]}  O-O {[%clk 0:03:01]} 10. Bxc6 {[%clk 0:02:38]}  bxc6 {[%clk 0:03:00]} 11. Nb3 {[%clk 0:02:35]}  Bd6 {[%clk 0:03:00]} 12. Re1 {[%clk 0:02:32]}  Qc7 {[%clk 0:02:57]} 13. Nf3 {[%clk 0:02:31]}  Bg4 {[%clk 0:02:55]} 14. Be3 {[%clk 0:02:25]}  Bxh2+ {[%clk 0:02:52]} 15. Kh1 {[%clk 0:02:18]}  Bd6 {[%clk 0:02:51]} 16. Nbd4 {[%clk 0:01:56]}  Ng6 {[%clk 0:02:50]} 17. c4 {[%clk 0:01:50]}  Bb4 {[%clk 0:02:30]} 18. Re2 {[%clk 0:01:40]}  dxc4 {[%clk 0:02:23]} 19. Qa4 {[%clk 0:01:32]}  c5 {[%clk 0:02:22]} 20. a3 {[%clk 0:01:30]}  cxd4 {[%clk 0:02:18]} 21. Bxd4 {[%clk 0:01:25]}  Bd6 {[%clk 0:02:12]} 22. Rc1 {[%clk 0:01:12]}  Qb7 {[%clk 0:02:06]} 23. Rxc4 {[%clk 0:01:03]}  Bxf3 {[%clk 0:02:05]} 24. gxf3 {[%clk 0:00:52]}  Qxf3+ {[%clk 0:02:04]} 0-1


[Site "https://www.chess.com"]

[Event "Titled Tuesday Blitz May 16 Early 2023"]
[White "Flis, Pawel"]
[Black "littlepillow2010"]
[WhiteFideId "1112864"]
[WhiteElo "1822"]
[BlackElo "2362"]
[Result "1-0"]
[Round "03"]
[TimeControl "180+2"]
[Date "2023.05.16"]
[WhiteClock "0:00:14"]
[BlackClock "0:00:00"]

1. e4 {[%clk 0:02:55]}  c5 {[%clk 0:02:56]} 2. Nf3 {[%clk 0:02:53]}  d6 {[%clk 0:02:56]} 3. d4 {[%clk 0:02:52]}  cxd4 {[%clk 0:02:57]} 4. Nxd4 {[%clk 0:02:52]}  Nf6 {[%clk 0:02:57]} 5. Nc3 {[%clk 0:02:53]}  a6 {[%clk 0:02:56]} 6. Bg5 {[%clk 0:02:53]}  Nbd7 {[%clk 0:02:56]} 7. f4 {[%clk 0:02:53]}  Qc7 {[%clk 0:02:56]} 8. Qf3 {[%clk 0:02:53]}  b5 {[%clk 0:02:56]} 9. O-O-O {[%clk 0:02:50]}  Bb7 {[%clk 0:02:55]} 10. Bd3 {[%clk 0:02:47]}  g6 {[%clk 0:02:55]} 11. Nd5 {[%clk 0:02:42]}  Nxd5 {[%clk 0:02:48]} 12. exd5 {[%clk 0:02:42]}  Nb6 {[%clk 0:02:48]} 13. Nc6 {[%clk 0:02:21]}  Nxd5 {[%clk 0:01:26]} 14. Qxd5 {[%clk 0:02:22]}  Bxc6 {[%clk 0:01:25]} 15. Qd4 {[%clk 0:02:11]}  Rg8 {[%clk 0:01:22]} 16. Rhe1 {[%clk 0:02:04]}  O-O-O {[%clk 0:01:17]} 17. a4 {[%clk 0:01:51]}  h6 {[%clk 0:01:09]} 18. Bh4 {[%clk 0:01:49]}  g5 {[%clk 0:01:09]} 19. fxg5 {[%clk 0:01:45]}  hxg5 {[%clk 0:01:10]} 20. Bf2 {[%clk 0:01:33]}  Kb8 {[%clk 0:00:49]} 21. axb5 {[%clk 0:01:30]}  axb5 {[%clk 0:00:50]} 22. Qb4 {[%clk 0:01:20]}  Qb7 {[%clk 0:00:48]} 23. g3 {[%clk 0:01:12]}  Bg7 {[%clk 0:00:36]} 24. c3 {[%clk 0:01:08]}  Be5 {[%clk 0:00:31]} 25. Kc2 {[%clk 0:01:07]}  Kc7 {[%clk 0:00:19]} 26. Qa5+ {[%clk 0:01:04]}  Kd7 {[%clk 0:00:19]} 27. Ra1 {[%clk 0:01:01]}  Ra8 {[%clk 0:00:16]} 28. Qb4 {[%clk 0:01:01]}  Rgb8 {[%clk 0:00:07]} 29. Qg4+ {[%clk 0:00:50]}  e6 {[%clk 0:00:03]} 30. Qxg5 {[%clk 0:00:45]}  Rg8 {[%clk 0:00:03]} 31. Qh5 {[%clk 0:00:40]}  Ke7 {[%clk 0:00:03]} 32. Be3 {[%clk 0:00:32]}  Rxa1 {[%clk 0:00:02]} 33. Rxa1 {[%clk 0:00:32]}  Ra8 {[%clk 0:00:03]} 34. Bg5+ {[%clk 0:00:30]}  Ke8 {[%clk 0:00:03]} 35. Rxa8+ {[%clk 0:00:26]}  Qxa8 {[%clk 0:00:04]} 36. Bf4 {[%clk 0:00:24]}  Bxf4 {[%clk 0:00:02]} 37. gxf4 {[%clk 0:00:24]}  Ke7 {[%clk 0:00:02]} 38. Qg5+ {[%clk 0:00:24]}  Kd7 {[%clk 0:00:02]} 39. Qf6 {[%clk 0:00:22]}  Qe8 {[%clk 0:00:02]} 40. f5 {[%clk 0:00:21]}  Qe7 {[%clk 0:00:02]} 41. Qd4 {[%clk 0:00:19]}  e5 {[%clk 0:00:02]} 42. Qa7+ {[%clk 0:00:19]}  Kd8 {[%clk 0:00:02]} 43. Qb8+ {[%clk 0:00:19]}  Kd7 {[%clk 0:00:02]} 44. Bxb5 {[%clk 0:00:18]}  Bxb5 {[%clk 0:00:03]} 45. Qxb5+ {[%clk 0:00:19]}  Kc7 {[%clk 0:00:03]} 46. Qc4+ {[%clk 0:00:18]}  Kb6 {[%clk 0:00:02]} 47. Qd5 {[%clk 0:00:18]}  e4 {[%clk 0:00:02]} 48. Qd4+ {[%clk 0:00:16]}  Kc6 {[%clk 0:00:01]} 49. f6 {[%clk 0:00:17]}  Qe6 {[%clk 0:00:01]} 50. Qa4+ {[%clk 0:00:16]}  Kb6 {[%clk 0:00:01]} 51. Qb4+ {[%clk 0:00:15]}  Kc6 {[%clk 0:00:02]} 52. Qa4+ {[%clk 0:00:16]}  Kb6 {[%clk 0:00:02]} 53. Qd4+ {[%clk 0:00:16]}  Kc6 {[%clk 0:00:02]} 54. h4 {[%clk 0:00:15]}  e3 {[%clk 0:00:02]} 55. Qa4+ {[%clk 0:00:15]}  Kb6 {[%clk 0:00:02]} 56. Kd1 {[%clk 0:00:16]}  Qd5+ {[%clk 0:00:00]} 57. Ke2 {[%clk 0:00:14]} 1-0


[Site "https://www.chess.com"]